Cogmind - Beta 13 @@@ ROGUE MODE // 2024.04.23 @ 18:24:24 Player: DONGSPRAYER9000 Result: Destroyed by G-34 Mercenary with Small Laser Performance ------------- Evolutions (0) 0 Regions Visited (1) 200 Robots Destroyed (6) 30 Value Destroyed (95) 95 Prototype IDs (0) 0 Alien Tech Used (0) 0 Bonus (0) 0 TOTAL SCORE: 325 Bonus ------- None Cogmind --------- Core Integrity 0/250 Matter 272/300 Energy 109/250 System Corruption 0% Temperature Cool (6) Movement Core (250) Ox4 Location -10/Materials Parts ------- > --- POWER (1) -------- Ion Engine > --- PROPULSION (2) --- (None) > --- UTILITY (2) ------ Small Storage Unit Structural Scanner > --- WEAPON (2) ------- Assault Rifle > --- INVENTORY (8) ---- Authchip [Storage] Peak State ------------ > --- POWER ------------ Light Ion Engine > --- PROPULSION ------- Aluminum Leg Aluminum Leg > --- UTILITY ---------- Small Storage Unit Structural Scanner > --- WEAPON ----------- Beam Cannon Beam Cannon > --- INVENTORY -------- Assault Rifle Mining Laser [Rating: 7] Favorites ----------- Power Light Ion Engine Engine Light Ion Engine Propulsion Aluminum Leg Leg Aluminum Leg Utility Small Storage Unit Device Structural Scanner Storage Small Storage Unit Weapon Beam Cannon Energy Gun Small Laser Energy Cannon Beam Cannon Ballistic Gun Assault Rifle Special Weapon Mining Laser Build | -11 -10 ------- Run | Yrd Mat Slots Evolved . | . . Power . | . . Propulsion . | . . Utility . | . . Weapon . | . . Parts Attached 14 | 7 7 Power 3 | 1 2 Engine 3 | 1 2 Core . | . . Reactor . | . . Propulsion 2 | 2 . Treads . | . . Leg 2 | 2 . Wheel . | . . Hover . | . . Flight . | . . Utility 2 | 1 1 Device 1 | . 1 Storage 1 | 1 . Processor . | . . Hackware . | . . Protection . | . . Artifact . | . . Weapon 7 | 3 4 Energy Gun 1 | 1 . Energy Cannon 2 | . 2 Ballistic Gun 3 | 2 1 Ballistic Cannon . | . . Launcher . | . . Special Weapon 1 | . 1 Impact Weapon . | . . Slashing Weapon . | . . Piercing Weapon . | . . Special Melee Weapon . | . . Unidentified Prototypes . | . . Parts Lost 6 | . 6 Power 1 | . 1 Propulsion 2 | . 2 Utility . | . . Weapon 3 | . 3 Highest Loss Streak 4 | . 4 To Critical Strikes . | . . Average Slot Usage (%) 85 | . 85 Engine 11 | . 11 Leg 22 | . 22 Device 11 | . 11 Storage 14 | . 14 Energy Cannon 20 | . 20 Ballistic Gun 4 | . 4 Naked Turns . | . . Heaviest Build 15 | 11 15 Greatest Support 20 | 20 20 Greatest Overweight (x) 4 | . 4 Average Overweight (x) . | . . Largest Inventory Capacity 8 | 8 8 Average Capacity 7 | 7 8 Most Carried 5 | 5 5 Average Carried 2 | . 2 Final Capacity 8 | 8 8 Final Carried 1 | 1 1 Class Distribution -------------------- 100% | Mutant Dominant Class ---------------- Mutant | -10/Materials Resources | -11 -10 ----------- Run | Yrd Mat Matter Collected 338 | 298 40 Remotely . | . . Salvage Created 237 | 141 96 Parts 12 | 7 5 Haulers Intercepted . | . . Recyclers Shooed . | . . Parts Field Recycled . | . . Retrieved Matter . | . . Parts Self-Destructed . | . . Prevented . | . . Kills | -11 -10 ------- Run | Yrd Mat Combat Hostiles Destroyed 2 | . 2 Cannons 2 | . 2 Classes Destroyed 3 | 2 1 Tunneler 3 | 3 . Recycler 1 | 1 . Grunt 2 | . 2 Best Kill Streak 2 | 1 2 Combat Bots Only 2 | . 2 Max Kills in Single Turn 1 | 1 1 Gunslinging . | . . Exploded . | . . Melee . | . . Uniques/NPCs Destroyed . | . . Combat | -11 -10 -------- Run | Yrd Mat Hostile Shots Fired 82 | . 82 Missed 20 | . 20 Damage Taken 868 | . 868 Core 261 | . 261 Absorbed by Shields . | . . Core Remaining (%) 100 | 100 . Volleys Fired 17 | 7 10 Largest 2 | 2 2 Hottest 120 | 40 120 Shots Fired 32 | 14 18 Gun 15 | 14 1 Cannon 17 | . 17 Launcher . | . . Special . | . . Kinetic 15 | 14 1 Thermal 17 | . 17 Explosive . | . . Electromagnetic . | . . Robot Hit Streak 7 | 4 7 Robot Miss Streak 5 | 2 5 Penetration Max . | . . Secondary Targets . | . . Shots Hit Robots 19 | 6 13 Core Hits 6 | 4 2 Critical Kills . | . . Critical Parts Destroyed . | . . Critical Strikes . | . . Melee Attacks . | . . Impact . | . . Slashing . | . . Piercing . | . . Sneak Attacks . | . . Combat Hostiles . | . . Follow-up Attacks . | . . Damage Inflicted 317 | 90 227 Guns 75 | 75 . Cannons 227 | . 227 Explosions . | . . Melee . | . . Ramming 15 | 15 . Kinetic 75 | 75 . Thermal 227 | . 227 Explosive . | . . Electromagnetic . | . . Impact . | . . Slashing . | . . Piercing . | . . Highest Corruption . | . . Average Corruption . | . . Corruption Purged . | . . Corruption Blocked . | . . Overload Shots . | . . Overflow Damage . | . . Projectiles . | . . Explosions . | . . Melee . | . . Knockbacks . | . . Impact . | . . Kinetic . | . . Secondary . | . . Self-Inflicted Damage . | . . Shots . | . . Rammed . | . . Targets Rammed 5 | 5 . Kicked 5 | 5 . Crushed . | . . Highest Temperature 309 | . 309 Average Temperature 116 | . 116 Received Heat Transfer 450 | . 450 Siege Activations . | . . Robots Corrupted . | . . Combat Hostiles . | . . Parts Fried . | . . Impact Corruptions . | . . Robots Melted . | . . Combat Hostiles . | . . Parts Melted . | . . Heat Transferred 481 | . 481 Parts Sabotaged . | . . Parts Stolen . | . . Parts Stripped . | . . Power Chain Reactions . | . . Alert | -11 -10 ------- Run | Yrd Mat Peak Influence 85 | 20 85 Initial 13 | . 13 Average 26 | 10 36 Maximum Alert Level . | . . Low Security (%) 100 | 100 100 Level 1 . | . . Level 2 . | . . Level 3 . | . . Level 4 . | . . Level 5 . | . . High Security . | . . Max Security . | . . Squads Dispatched 1 | . 1 Investigation . | . . Extermination . | . . Reinforcement 1 | . 1 Assault . | . . Garrison . | . . Intercept . | . . Searches Triggered . | . . Construction Impeded . | . . Haulers Reinforced . | . . Active Scanning Responses . | . . Cargo Convoy Interrupts . | . . Stealth | -11 -10 --------- Run | Yrd Mat Distress Signals . | . . Communications Jammed . | . . Distress Signals . | . . Times Spotted 7 | . 7 Peak Tracking Total 4 | . 4 Tactical Retreats . | . . Traps | -11 -10 ------- Run | Yrd Mat Traps Triggered . | . . Indirectly . | . . Trap Hack Attempts . | . . Triggered . | . . Disarmed . | . . Reprogrammed . | . . Reused . | . . Traps Extracted . | . . Installed . | . . Triggered . | . . Machines | -11 -10 ---------- Run | Yrd Mat Machines Disabled . | . . Max in Single Turn . | . . Machines Repaired . | . . Machines Dismantled . | . . Machines Sabotaged . | . . Overloaded Fab Kills . | . . Hacking | -11 -10 --------- Run | Yrd Mat Machines Accessed 3 | . 3 Terminals 2 | . 2 Fabricators . | . . Repair Stations . | . . Recycling Units 1 | . 1 Scanalyzers . | . . Garrison Access . | . . Total Hacks 5 | . 5 Successful 3 | . 3 Failed 2 | . 2 Catastrophic . | . . Database Lockouts . | . . Manual . | . . Terminals 4 | . 4 Fabricators . | . . Repair Stations . | . . Recycling Units 1 | . 1 Scanalyzers . | . . Garrison Access . | . . Terminal Hacks 2 | . 2 Record 1 | . 1 Recall Investigation 1 | . 1 Fabricator Hacks . | . . Repair Station Hacks . | . . Recycling Unit Hacks 1 | . 1 Retrieve Components 1 | . 1 Scanalyzer . | . . Garrison Access Hacks . | . . Unauthorized Hacks . | . . Terminals . | . . Fabricators . | . . Repair Stations . | . . Recycling Units . | . . Scanalyzers . | . . Garrison Access . | . . Data Cores Recovered . | . . Used . | . . Hacking Detections . | . . Full Trace Events . | . . Feedback Events . | . . Feedback Blocked . | . . Robot Schematics Acquired . | . . Robots Built . | . . Authchips . | . . Time . | . . Total Robot Build Rating . | . . Part Schematics Acquired . | . . Parts Built . | . . Authchips . | . . Time . | . . Total Part Build Rating . | . . Parts Repaired . | . . Time . | . . Parts Recycled . | . . Recycled Matter . | . . Retrieved Matter . | . . Retrieved Components 3 | . 3 Parts Scanalyzed . | . . Part Schematics Acquired . | . . Parts Damaged . | . . Bothacking | -11 -10 ------------ Run | Yrd Mat Used RIF Installer . | . . Robots Hacked . | . . Non-combat . | . . Combat . | . . Robot Hacks Applied . | . . Relay Couplers Released . | . . Fabnet Peak Effective % . | . . Robots Rewired . | . . Allies Hacked . | . . Hacks Repelled . | . . Allies | -11 -10 -------- Run | Yrd Mat Total Allies . | . . Largest Group . | . . Highest-Rated Group . | . . Highest-Rated Ally . | . . Total Orders . | . . Ally Attacks . | . . Total Damage . | . . Kills . | . . Allies Corrupted . | . . Allies Melted . | . . Intel | -11 -10 ------- Run | Yrd Mat Robot Analysis Total . | . . Derelict Logs Recovered . | . . Drone Launches . | . . Drone Recoveries . | . . Exploration | -11 -10 ------------- Run | Yrd Mat Turns Passed 552 | 215 337 Spaces Moved 387 | 158 229 Core 53 | 22 31 Treads . | . . Legs 334 | 136 198 Wheels . | . . Hover . | . . Flight . | . . Fastest Speed 50 | 50 100 Average Speed 119 | 110 126 Slowest Speed 250 | 120 250 Overloaded Moves . | . . Propulsion Burnouts . | . . Robots Hopped . | . . Cave-ins Triggered . | . . Exploration Rate (%) 18 | 7 30 Regions Visited 1 Branch Regions . Pre-discovered Areas . | . . Known Exits Taken . | . . Unknown Exits Taken 1 | 1 . Scrap Searched . | . . Spaces Dug . | . . Terrain Destroyed . | . . Melee . | . . Projectile . | . . AOE . | . . Terrain Rammed . | . . Walls Destroyed . | . . Machines Disabled . | . . Actions | -11 -10 --------- Run | Yrd Mat Total 448 | 185 263 Wait 1 | . 1 Move 386 | 157 229 Hop . | . . Pick Up 17 | 8 9 Fast Attach . | . . Attach 13 | 7 6 Detach 2 | . 2 Swap 1 | . 1 Drop 6 | 1 5 Fire 17 | 7 10 Melee . | . . Ram . | . . Kick 5 | 5 . Crush . | . . Escape Stasis . | . . Rewire . | . . Trap . | . . Miscellaneous . | . . Route ------- -11/Scrapyard -10/Materials History --------- Turn | Location | Event 12 | -11/Scrapyard | Discovered new exit (range 15) 216 | -11/Scrapyard | Entered Materials 333 | -10/Materials | Build established: Mutant 505 | -10/Materials | Core integrity fell below 50% 530 | -10/Materials | Lost 4 parts (1p2n1w) 542 | -10/Materials | Core integrity fell below 20% 553 | -10/Materials | Destroyed by G-34 Mercenary with Small Laser Last Messages --------------- Acquired Ion Engine. K-01 Serf cleans the Matter Pump. R-06 Scavenger collects Heat Sink. K-01 Serf collects debris. R-06 Scavenger collects Aluminum Leg. K-01 Serf collects debris. K-01 Serf cleans the Matter Pump. T-07 Excavator is excavating. K-01 Serf cleans the Matter Pump. T-07 Excavator is excavating. Aluminum Leg destroyed. Beam Cannon destroyed. T-07 Excavator is excavating. Lgt. Ion Engine destroyed. T-07 Excavator is excavating. Aluminum Leg destroyed. Nuclear Reactor explodes. The unstable cave ceiling collapses. Beam Cannon destroyed. Mining Laser destroyed. Map ----- +----------------------------------------------------+ | ???????????????? ### ? ????? ???? | | ????????????????% ### """ ???? ???? | | ????????????? ### """ ### ????? | | ?????????????####+## """ ### ????? | | ?????????????## # ?????? | | ?????????????## + ?????? | | ??????????##### # ??????? | | ??????????##### ## # # | | ?????????## # # # ######## | | ?????????## # ## | | ?????????### # "T" ## | | ??????????##### """ ## | | ?????????????## ## | | ?????????????## # #/##### | | ?????????????## # ## # ##### | | ??############# #### ### ##??? | | ??############# ### ## ##??? | | ??## ## ##### ##??? | | ??## ## ##### ##??? | | ??## """ """ ## #####??## ##??? | | ??## ?""" """ ## #####??## ##??? | | ???? """ """ ## ######### ##??? | | ?? ## ######### ##??? | | ?? ## g gg ##??? | | ?? """ """ ## g ##??? | | ??????""" """ ## @ ##### | | ???? """ """ ## #####+###+##### | | ??? ## # # | | ??? ## # "" """ """ # | | ???? """ """ ## + "T """ """ # | | ???????"" """ # "" """ """ # | | ???????"" """ % % # """ """ # | | ?????? # # | | ??? ####+########## | | ???? #### ## # | | ???? # [# | | ???? + ! # | | ???? ##########/### # """ # | | ???? #### # """ # """ # | | ????????????? ? # """ # """ # | | ???????????? ? # """ # # | | ????????????" "?? # # "" # | | ????????????"???? # # Y" # | | ????????????????? ## ##### # "" # | | ????????????????? ## ##### # # | | ??????????????????## ##?############# | | ??????????????????## ? ############ | | ??????????????????## ?????????????????? | | ??????????????????????????????????????? | | ??????????????????????????????????????? | +----------------------------------------------------+ Best States ------------- Heat Dissipation 25 Energy Generation 10 Energy Capacity 250 Matter Stores 300 Matter Capacity 300 Sight Range 16 Terrain Scan Density 10 Evasion (%) 55 Authchip Count 1 Item Schematics ----------------- None Robot Schematics ------------------ None Fabricated ------------ Nothing Alien Tech Used ----------------- None Achievements -------------- Storm Trooper Challenges ------------ None Game ------ Seed TransportDefenseLog Manual? 0 Play Time 00:11:49 Cumulative 0.5 hours Start 2024.04.23 @ 18:14:18 End 2024.04.23 @ 18:24:24 Sessions 1 Manual Loads 0 Difficulty Rogue Special Mode None Game No. 3 Rogue 3 Adventurer 0 Explorer 0 Win Type - Total 0 Types 0/0/0/0/0/0/0/0/0 Lore% 0 Gallery% 1 Achievement% 1 Wizard Run 0 Options --------- Layout 1 ASCII 0 Keyboard 0 Movement Numpad Keybinds 0 Fullscreen 1 Font 48/Smallcaps Map View 50x35 Zoom Use 0% Tactical HUD 0 Map Filters NONE Filters NONE Steam 1 RUN: 4ca76eca-1d5a-410f-bf14-317313f4b215